[Event "35th Cannes FIJ Open 2022"]
[Site "Cannes"]
[Date "2022.02.25"]
[Round "7.7"]
[White "Klimkowski, Jan"]
[Black "Valsecchi, Alessio"]
[Result "1-0"]
[ECO "C79"]
[WhiteElo "2350"]
[BlackElo "2524"]
[Annotator "ChessBase"]
[PlyCount "45"]
[EventDate "2022.02.21"]
[EventType "swiss"]
[EventCountry "FRA"]
[SourceTitle "playchess.com"]
[Source "ChessBase"]
[SourceQuality "1"]
[TimeControl "40/5400+30:1800+30"]

1. e4 {[%emt 0:01:56]} e5 {[%emt 0:00:08]} 2. Nf3 {[%emt 0:00:30]} Nc6 {[%emt 0:00:09]} 3. Bb5 {[%emt 0:00:09]} a6 {[%emt 0:00:08]} 4. Ba4 {[%emt 0:00:03]} d6 {[%emt 0:00:08]} 5. O-O {[%emt 0:00:49]} Nf6 {[%emt 0:01:31]} 6. Re1 {[%emt 0:00:50]} Bd7 {[%emt 0:11:27]} 7. c3 {[%emt 0:00:45]} g6 {[%emt 0:00:07]} 8. d4 {[%emt 0:01:21]} b5 {[%emt 0:00:42]} 9. Bb3 {[%emt 0:00:58]} Bg7 {[%emt 0:00:13]} 10. Bg5 {[%emt 0:05:21]} h6 {[%emt 0:07:59]} 11. Bh4 {[%emt 0:03:18]} Qe7 {[%emt 0:07:16]} 12. Nbd2 {[%emt 0:01:35]} Na5 {[%emt 0:12:30]} 13. dxe5 {[%emt 0:23:40]} dxe5 {[%emt 0:00:12]} 14. Nxe5 {[%emt 0:00:04]} Nxb3 {[%emt 0:17:17]} 15. Nxd7 {[%emt 0:00:48]} Nxa1 {[%emt 0:02:00]} 16. e5 {[%emt 0:00:04]} Qxd7 {[%emt 0:07:57]} 17. exf6+ {[%emt 0:00:15]} Kf8 {[%emt 0:00:05]} 18. fxg7+ {[%emt 0:00:38]} Kxg7 {[%emt 0:00:07]} 19. Bf6+ {[%emt 0:00:03]} Kh7 {[%emt 0:00:10]} 20. Bxh8 {[%emt 0:00:07]} Kxh8 {[%emt 0:00:22]} 21. Nf1 {[%emt 0:00:30]} Qxd1 {[%emt 0:01:02]} 22. Rxd1 {[%emt 0:00:03]} Nc2 {[%emt 0:00:07]} 23. Rc1 {[%emt 0:00:03]} 1-0